bitfinex/quotes_ETHUSD_20220202
["timestamp","ask_amount","ask_price","bid_price","bid_amount"]
[1643786175200,3.05090671,2756.2,2755.7,0.1814]
[1643786175702,3.05090671,2756.2,2755.2,0.1814]
[1643786176103,2.9478301,2756.2,2755.2,0.1814]
[1643786176304,0.99999999,2756.0,2755.2,0.1814]
[1643786176507,2.54117368,2755.9,2755.0,0.1814]
[1643786176806,1.1814,2755.8,2755.0,0.1814]
[1643786177005,2.15338983,2755.7,2754.7,0.1814]
[1643786178405,0.1814,2755.6,2754.7,0.1814]
[1643786180352,0.1814,2755.6,2754.7,1.07881487]
[1643786180749,0.1814,2755.6,2754.7,1.37881487]
[1643786181953,0.1814,2755.6,2754.7,1.19741487]
[1643786182154,0.17436633,2755.6,2754.7,1.19741487]
[1643786183101,0.17436633,2755.6,2754.7,0.89741487]
[1643786183302,1.17436633,2755.6,2754.5,1.3521]
[1643786183502,1.92559636,2755.5,2754.5,1.3521]
[1643786183707,2.22559636,2755.5,2754.5,1.3521]
[1643786184299,0.17436633,2755.6,2754.5,1.3521]
[1643786184499,0.17436633,2755.6,2754.7,0.89243676]
[1643786184701,1.17436633,2755.6,2754.7,0.89243676]
[1643786184900,0.17436633,2755.6,2754.7,0.89243676]
[1643786185102,1.17436633,2755.6,2754.7,0.89243676]
[1643786185302,1.47436633,2755.6,2754.7,0.89243676]
[1643786185802,1.17436633,2755.6,2754.7,0.89243676]
[1643786186003,1.92598187,2755.5,2754.7,0.89243676]
[1643786186209,1.17436633,2755.6,2754.7,0.89243676]
[1643786186210,0.17436633,2755.6,2754.7,0.89243676]
[1643786186657,0.1814,2755.7,2754.7,0.89243676]
[1643786186862,0.4814,2755.8,2754.7,0.89243676]
[1643786188265,1.98364485,2755.7,2754.7,0.89243676]
[1643786188464,0.1814,2755.6,2754.7,0.89243676]
[1643786189161,0.1814,2755.7,2754.7,0.89243676]
[1643786189361,0.1814,2755.9,2754.8,1.1882]
[1643786189668,0.1814,2755.9,2755.1,0.38908355]
[1643786189869,1.13819997,2756.0,2755.2,0.0142549]
[1643786189870,0.31959997,2756.0,2755.2,0.0142549]
[1643786190100,0.13819997,2756.0,2755.1,0.91308355]
[1643786190303,0.13819997,2756.0,2755.2,0.00923525]
[1643786190502,0.13819997,2756.0,2755.1,0.38908355]
[1643786190703,0.13819997,2756.0,2755.5,0.91805948]
[1643786190908,0.13819997,2756.0,2755.5,0.18556248]
[1643786192207,0.13819997,2756.0,2755.5,0.25]
[1643786193114,1.29517263,2756.0,2755.5,0.25]
[1643786193314,2.56844472,2755.9,2755.5,0.25]
[1643786193612,3.70914472,2755.9,2754.9,0.25]
[1643786194557,1.0,2755.8,2754.9,0.25]
[1643786194757,0.1814,2755.7,2754.9,0.25]
[1643786195276,0.4814,2755.7,2754.9,0.25]
[1643786195857,0.7814,2755.7,2754.9,0.25]
[1643786196270,0.4814,2755.7,2754.9,0.25]
[1643786196467,0.7814,2755.7,2754.9,0.25]
[1643786196866,0.4814,2755.7,2754.9,0.25]
[1643786197065,0.7814,2755.7,2754.9,0.25]
[1643786197464,0.4814,2755.7,2754.9,0.25]
[1643786197708,0.7814,2755.7,2754.9,0.25]
[1643786198110,0.4814,2755.7,2754.9,0.25]
[1643786198307,0.7814,2755.7,2754.9,0.25]
[1643786199108,0.4814,2755.7,2754.9,0.25]
[1643786199314,1.6186,2755.7,2754.9,0.25]
[1643786199708,2.52624,2755.7,2754.9,0.25]
[1643786200109,1.0,2755.6,2754.9,0.25]
[1643786200308,0.1814,2755.5,2754.9,0.25]
[1643786200711,0.4814,2755.5,2754.9,0.25]
[1643786201109,0.3,2755.6,2754.9,0.25]
[1643786201351,0.7814,2755.8,2754.9,0.25]
[1643786201556,0.4814,2755.8,2754.9,0.25]
[1643786201759,0.4814,2755.8,2755.6,0.75213986]
[1643786201760,0.1814,2755.8,2755.6,0.75213986]
[1643786201967,0.1814,2756.1,2755.6,0.75213986]
[1643786202158,0.1814,2756.5,2755.6,1.00213986]
[1643786202358,1.53386924,2756.4,2755.6,1.00213986]
[1643786202559,0.1814,2756.3,2755.6,1.00213986]
[1643786202758,8.02863,2756.7,2755.6,1.00213986]
[1643786202759,0.1814,2756.6,2755.6,1.00213986]
[1643786203060,1.53384416,2756.5,2755.6,0.25]
[1643786203264,0.1814,2756.4,2755.6,0.25]
[1643786203457,1.53384416,2756.3,2755.6,0.25]
[1643786203661,0.1814,2756.2,2755.6,0.25]
[1643786203865,1.53384416,2756.1,2755.6,0.25]
[1643786204059,2.65598633,2756.0,2755.6,0.25]
[1643786204465,1.0,2755.9,2755.0,1.2316]
[1643786204759,0.4814,2755.8,2755.0,1.2316]
[1643786205211,0.1814,2755.8,2755.0,1.2316]
[1643786206111,0.1814,2755.9,2755.0,1.413]
[1643786206313,0.3,2756.1,2755.0,1.413]
[1643786206314,2.1218165,2756.0,2755.0,1.413]
[1643786206915,0.1814,2756.0,2755.0,1.413]
[1643786207121,0.1814,2756.0,2755.4,0.79371313]
[1643786207714,2.08635867,2756.0,2755.4,0.79371313]
[1643786207915,2.08635867,2756.0,2755.0,1.413]
[1643786208115,2.08635867,2756.0,2755.0,1.2316]
[1643786209557,2.08635867,2756.0,2755.2,0.79875517]
[1643786209761,0.1814,2756.0,2755.2,0.79875517]
[1643786210360,0.4814,2756.0,2755.2,0.79875517]
[1643786210562,0.6,2756.0,2755.2,0.79875517]
[1643786210763,1.7814,2756.2,2755.2,0.79875517]
[1643786210962,3.44615522,2756.1,2755.2,0.79875517]
[1643786211161,0.1814,2756.0,2755.2,0.79875517]
[1643786212620,0.1814,2756.0,2755.2,1.09875517]
[1643786212821,0.13819997,2756.5,2755.2,1.09875517]
[1643786212822,0.1814,2756.4,2755.3,4.5021998]
[1643786213020,0.1814,2756.4,2755.5,0.44489249]
[1643786213421,1.53374902,2756.3,2755.6,2.07223796]
[1643786213624,0.1814,2756.6,2755.7,1.78058152]
[1643786213823,0.1814,2756.9,2756.3,0.77586757]
[1643786214026,1.53358236,2756.8,2756.3,0.77586757]
[1643786214223,1.53358236,2756.9,2756.4,0.25]
[1643786214422,1.0,2757.1,2756.4,0.25]
[1643786214423,1.71478236,2756.8,2756.4,0.25]
[1643786214625,1.53358236,2756.7,2756.4,0.25]
[1643786214829,0.1812,2757.3,2756.4,1.3862]
[1643786215031,0.1812,2757.3,2756.4,0.25]
[1643786215032,1.53353901,2757.2,2756.4,0.25]
[1643786215231,1.71473901,2757.1,2756.4,0.25]
[1643786215428,1.53353901,2757.0,2756.4,0.25]
[1643786215831,1.53353901,2756.9,2756.4,0.25]
[1643786216030,1.53353901,2756.8,2756.4,0.25]
[1643786216229,1.53353901,2756.7,2756.4,0.25]
[1643786216458,1.53353901,2756.6,2756.4,0.25]
[1643786216658,0.1812,2757.0,2756.4,0.25]
[1643786216856,1.53356089,2756.9,2756.4,0.25]
[1643786220223,2.13356089,2756.9,2756.4,0.25]
[1643786220421,2.53356088,2756.8,2756.4,0.25]
[1643786220622,1.71476089,2756.7,2756.4,0.25]
[1643786220820,3.44877643,2756.6,2756.4,0.25]
[1643786221018,1.71476089,2756.5,2756.4,0.25]
[1643786222726,2.01476089,2756.5,2755.6,1.1904]
[1643786222920,1.53356089,2756.4,2755.7,0.25]
[1643786224157,0.1814,2756.3,2755.7,0.25]
[1643786224356,1.53356089,2756.2,2755.7,0.25]
[1643786224557,1.83356089,2756.2,2755.7,0.25]
[1643786224756,1.53356089,2756.1,2755.7,0.25]
[1643786225559,2.53356089,2756.1,2755.7,0.25]
[1643786225757,0.3,2756.2,2755.7,0.25]
[1643786225957,1.53384243,2756.1,2755.7,0.25]
[1643786227165,1.5322975,2756.1,2755.7,0.25]
[1643786229409,0.3,2756.3,2755.7,0.25]
[1643786229610,1.1814,2756.4,2755.7,0.25]
[1643786229611,0.4814,2756.4,2755.7,0.25]
[1643786229812,0.1814,2756.4,2755.7,0.25]
[1643786238721,2.1148972,2756.3,2755.7,0.25]
[1643786238966,2.1148972,2756.3,2755.3,1.1367]
[1643786238967,1.51994265,2756.2,2755.3,1.1367]
[1643786239365,2.51994265,2756.2,2755.3,1.1367]
[1643786239573,1.7054,2756.2,2755.3,1.1367]
[1643786239772,0.7054,2756.2,2755.3,1.1367]
[1643786239972,1.1814,2756.2,2755.3,1.1367]
[1643786240175,0.1814,2756.2,2755.3,1.1367]
[1643786240772,1.87136,2756.2,2755.3,1.1367]
[1643786241172,2.87136,2756.2,2755.3,1.1367]
[1643786243714,0.9639,2756.2,2755.3,1.1367]
[1643786243916,1.0,2756.1,2755.3,1.1367]
[1643786244116,1.6,2756.3,2755.4,0.1814]
[1643786244316,0.3,2756.3,2755.4,0.1814]
[1643786244717,1.7814,2756.6,2755.4,0.1814]
[1643786245720,1.7814,2756.6,2755.4,1.08863]
[1643786245921,1.7814,2756.6,2755.4,0.90723]
[1643786246127,1.7814,2756.6,2755.5,0.70173253]
[1643786246358,1.7814,2756.6,2755.6,1.2406]
[1643786247264,1.7814,2756.6,2755.6,3.73672117]
[1643786247265,1.53370792,2756.5,2755.6,3.73672117]
[1643786247468,1.53370792,2756.5,2755.6,5.12528117]
[1643786247870,0.1814,2756.6,2755.6,5.12528117]
[1643786248167,0.1814,2757.2,2756.2,0.91954328]
[1643786248368,2.39070439,2757.2,2755.8,0.1812]
[1643786248564,2.39070439,2757.2,2755.9,1.1872]
[1643786248565,2.20930439,2757.1,2755.9,1.1872]
[1643786248771,0.1812,2757.0,2755.9,1.1872]
[1643786249069,1.53349605,2756.9,2755.9,1.1872]
[1643786249267,0.1812,2756.8,2755.9,1.1872]
[1643786249464,1.53349605,2756.7,2755.9,1.1872]
[1643786249665,2.13349605,2756.7,2756.0,0.85114288]
[1643786249865,1.53349605,2756.6,2756.0,0.85114288]
[1643786250307,2.53349605,2756.9,2756.0,0.85114288]
[1643786250510,1.71469605,2756.8,2756.0,0.85114288]
[1643786250711,2.13349605,2756.7,2756.0,0.85114288]
[1643786250911,1.53349605,2756.6,2755.9,1.1872]
[1643786251115,0.1814,2756.5,2755.7,3.3241]
[1643786251318,1.53349605,2756.4,2755.7,3.3241]
[1643786251517,0.1814,2756.3,2755.4,0.1814]
[1643786251712,1.83349605,2756.2,2755.4,0.1814]
[1643786251911,1.53349605,2756.1,2755.4,0.1814]
[1643786252111,1.53349605,2756.0,2755.4,0.1814]
[1643786252311,0.4814,2756.3,2755.4,0.1814]
[1643786252511,1.53377474,2756.2,2755.3,1.3213]
[1643786253416,1.53377474,2756.2,2753.6,3.62952]
[1643786253417,0.99999999,2755.4,2753.6,3.62952]
[1643786253618,0.99999999,2755.4,2754.1,1.83360384]
[1643786253619,6.554,2754.8,2754.1,1.83360384]
[1643786253883,0.01242641,2754.1,2753.2,0.2516465]
[1643786254076,1.89658474,2754.0,2753.2,0.0016465]
[1643786254279,2.96602474,2753.9,2753.2,0.0016465]
[1643786254476,1.71630003,2753.8,2752.6,2.8241]
[1643786254679,2.05890003,2753.7,2752.6,2.8241]
[1643786254876,0.524,2753.7,2752.6,2.8241]
[1643786255375,0.7056,2753.7,2752.7,0.70224816]
[1643786255979,0.7056,2753.7,2752.7,1.30224816]
[1643786256577,0.7056,2753.7,2753.0,0.37307513]
[1643786257075,0.7056,2753.7,2752.7,1.30224816]
[1643786257377,0.7056,2753.7,2752.7,1.00224816]
[1643786258213,0.7056,2753.7,2753.0,0.34105151]
[1643786259616,0.524,2753.7,2752.7,1.00224816]
[1643786260422,0.1814,2753.8,2752.7,2.30224816]
[1643786260619,1.27639994,2754.4,2753.6,0.34940382]
[1643786260620,2.1816,2754.3,2753.6,0.34940382]
[1643786260820,1.1816,2754.3,2753.6,0.34940382]
[1643786261021,1.1816,2754.3,2752.8,0.18149]
[1643786261219,0.1816,2754.3,2752.8,0.18149]
[1643786261470,2.36301,2754.3,2752.7,3.4157]
[1643786261674,0.524,2754.2,2752.8,0.1814]
[1643786261866,0.524,2754.2,2752.9,0.90785]
[1643786262067,0.524,2754.2,2753.6,0.42535164]
[1643786262268,0.524,2754.2,2753.3,0.1814]
[1643786262269,0.824,2754.2,2753.3,0.1814]
[1643786262472,0.824,2754.2,2752.8,0.1814]
[1643786262673,0.36281,2754.1,2752.8,0.1814]
[1643786262874,0.524,2754.0,2752.8,0.1814]
[1643786263075,0.524,2754.0,2752.7,0.1814]
[1643786263276,0.824,2754.0,2752.7,0.1814]
[1643786263473,0.824,2754.0,2753.3,0.42490699]
[1643786263675,0.3,2754.0,2753.3,0.42490699]
[1643786264073,0.66281,2754.1,2753.3,0.42490699]
[1643786264774,0.1814,2754.1,2753.3,0.42490699]
[1643786265214,0.1814,2754.3,2753.3,0.42490699]
[1643786266016,0.1814,2754.3,2753.5,0.95156912]
[1643786266217,0.18141,2754.2,2753.5,0.95156912]
[1643786266423,0.1814,2754.1,2753.3,0.42490699]
[1643786267222,2.2282686,2754.1,2753.3,0.42490699]
[1643786267423,2.24258665,2754.1,2753.3,0.42490699]
[1643786267627,0.18141,2754.0,2753.3,0.42490699]
[1643786268025,0.18141,2754.0,2753.0,1.2372]
[1643786268224,0.1814,2753.9,2753.0,1.2372]
[1643786268422,0.18141,2753.8,2753.0,1.2372]
[1643786268624,0.1814,2753.9,2753.0,1.2372]
[1643786269057,0.1814,2753.9,2753.5,0.34791263]
[1643786269260,1.1814,2753.9,2753.5,0.34791263]
[1643786269657,0.1814,2753.9,2753.0,2.14492934]
[1643786269858,2.19837962,2753.9,2753.0,2.14492934]
[1643786270258,3.19837962,2753.9,2753.0,2.14492934]
[1643786270458,2.19837962,2753.9,2753.0,2.14492934]
[1643786270658,1.0,2753.8,2753.1,0.42589983]
[1643786270959,2.19837962,2753.9,2753.1,0.42589983]
[1643786270960,3.19837962,2753.9,2753.1,0.42589983]
[1643786272165,3.19837962,2753.9,2752.7,0.1814]
[1643786272166,0.01261119,2753.5,2752.7,0.1814]
[1643786272370,0.524,2753.4,2752.7,0.1814]
[1643786272610,0.1816,2753.3,2752.7,0.1814]
[1643786272811,0.70541,2753.2,2752.7,0.1814]
[1643786273012,1.00541,2753.2,2752.7,0.1814]
[1643786273810,0.70541,2753.2,2752.7,0.1814]
[1643786274620,0.70541,2753.2,2752.5,1.1516]
[1643786275414,0.524,2753.2,2752.5,1.1516]
[1643786275618,0.824,2753.2,2752.5,1.1516]
[1643786275816,0.18141,2753.1,2752.5,1.1516]
[1643786276016,0.70541,2753.1,2752.5,1.1516]
[1643786276217,1.70541,2753.1,2752.5,1.1516]
[1643786276470,0.70541,2753.1,2752.5,1.1516]
[1643786276671,1.70397187,2753.1,2752.5,1.1516]
[1643786276873,0.70397187,2753.1,2752.5,1.1516]
[1643786277070,1.70397187,2753.1,2752.5,1.1516]
[1643786277278,0.524,2753.1,2752.5,1.1516]
[1643786278173,0.824,2753.1,2752.5,1.1516]
[1643786278975,2.03624318,2753.0,2752.5,1.1516]
[1643786279172,0.17997187,2752.9,2752.5,1.1516]
[1643786279371,0.17997187,2752.9,2752.1,0.1816]
[1643786279573,0.17997187,2752.9,2752.2,0.3185959]
[1643786279772,0.17997187,2752.9,2752.1,0.1816]
[1643786280226,2.15128492,2752.9,2752.1,0.1816]
[1643786280620,1.17997187,2752.9,2752.1,0.1816]
[1643786280922,2.13513904,2752.9,2752.1,0.58793634]
[1643786281323,0.17997187,2752.9,2752.1,0.58793634]
[1643786284969,2.0056,2753.1,2752.1,0.58793634]
[1643786284970,0.88557187,2753.1,2752.1,0.58793634]
[1643786285176,0.1816,2753.3,2752.1,0.88793634]
[1643786285769,0.1816,2753.4,2752.1,0.88793634]
[1643786285968,0.1816,2753.4,2752.2,1.1271]
[1643786286171,0.1816,2753.4,2752.2,1.4271]
[1643786286369,0.17997187,2753.3,2752.2,1.4271]
[1643786286575,0.1816,2753.2,2752.2,1.1271]
[1643786286774,0.7056,2753.2,2752.2,1.1271]
[1643786286975,0.7056,2753.2,2752.2,1.4271]
[1643786287178,0.17997187,2753.1,2752.2,1.1271]
[1643786288213,0.17997187,2753.1,2752.2,1.4271]
[1643786288814,1.17997187,2753.1,2752.2,1.4271]
[1643786289213,0.17997187,2753.1,2752.2,1.4271]
[1643786290915,1.17997187,2753.1,2752.2,1.4271]
[1643786291113,0.17997187,2753.1,2752.2,1.4271]
[1643786291759,0.17997187,2753.1,2752.5,0.71689506]
[1643786293367,0.7056,2753.2,2752.5,0.71689506]
[1643786293564,0.524,2753.2,2752.5,0.71689506]
[1643786293766,0.1816,2753.6,2752.6,0.25]
[1643786293972,0.1816,2753.6,2752.8,1.0]
[1643786294168,0.1816,2753.6,2753.2,0.01247181]
[1643786294368,0.1816,2753.6,2753.3,1.08645579]
[1643786294568,0.1816,2753.6,2753.4,0.01305066]
[1643786295215,0.1816,2753.6,2753.3,0.90505579]
[1643786295415,2.68814397,2754.9,2753.0,0.91287647]
[1643786295416,0.48244694,2753.2,2753.0,0.91287647]
[1643786296312,0.17997187,2753.9,2753.8,4.08809647]
[1643786296521,0.17997187,2753.9,2753.1,6.8]
[1643786296522,0.1814,2753.9,2753.7,0.9772]
[1643786296716,0.1814,2754.6,2753.7,1.2772]
[1643786296918,2.0,2754.9,2753.7,0.9772]
[1643786296919,1.53490704,2754.5,2753.7,0.9772]
[1643786297116,1.71630704,2754.4,2753.7,1.2772]
[1643786297316,1.53490704,2754.3,2753.7,0.9772]
[1643786297516,1.53490704,2754.3,2754.1,0.68141064]
[1643786297517,0.1814,2754.2,2754.1,0.68141064]
[1643786297716,1.53490704,2754.2,2753.7,0.3]
[1643786297918,1.1814,2754.6,2753.3,5.32319]
[1643786297919,1.53491083,2754.1,2753.3,5.32319]
[1643786298125,2.17997187,2754.5,2753.4,0.4814]
[1643786298126,1.53491083,2754.0,2753.4,0.4814]
[1643786298419,1.53491083,2753.9,2753.4,0.4814]
[1643786298620,1.1814,2754.4,2753.4,0.3]
[1643786298867,1.53492589,2754.3,2753.5,0.73795852]
[1643786299368,2.53492589,2754.3,2753.5,0.73795852]
[1643786299570,1.53492589,2754.2,2753.5,0.73795852]
[1643786299969,1.53492589,2754.1,2753.5,0.73795852]
[1643786300170,1.53492589,2754.0,2753.5,0.73795852]
[1643786300372,0.4814,2754.4,2753.5,0.73795852]
[1643786300569,1.53500454,2754.3,2753.5,0.73795852]
[1643786300972,1.53500454,2754.3,2753.4,0.4814]
[1643786300973,3.5005081,2754.3,2753.4,0.4814]
[1643786301172,2.53500454,2754.2,2753.4,0.1814]
[1643786301376,3.54005504,2754.1,2753.4,0.1814]
[1643786301576,1.53500454,2754.0,2753.4,0.1814]
[1643786301779,1.83500454,2754.0,2753.4,0.1814]
[1643786301975,1.53500454,2753.9,2753.4,0.1814]
[1643786302377,2.83500454,2753.9,2753.4,0.1814]
[1643786302616,1.53500454,2753.8,2753.4,0.1814]
[1643786303015,1.0,2753.8,2753.4,0.1814]
[1643786303218,1.47997187,2754.0,2753.4,0.1814]
[1643786303421,1.53512325,2753.9,2753.4,0.1814]
[1643786303817,1.83512325,2753.9,2753.4,0.1814]
[1643786304016,1.53512325,2753.8,2753.4,0.1814]
[1643786304217,1.53512325,2753.8,2753.3,1.1491]
[1643786304817,0.3,2753.9,2753.3,1.1491]
[1643786305016,0.47997187,2754.0,2753.3,1.1491]
[1643786305219,1.53508191,2753.9,2753.3,1.1491]
[1643786305618,2.83508191,2753.9,2753.3,1.1491]
[1643786305822,3.4923364,2753.8,2753.3,1.1491]
[1643786306032,1.53521603,2753.7,2753.3,1.1491]
[1643786306219,2.06464811,2753.6,2753.3,1.1491]
[1643786306475,2.06464811,2753.6,2752.9,0.1814]
[1643786306874,1.98096348,2753.6,2752.9,0.1814]
[1643786307076,1.95376845,2753.6,2752.9,0.1814]
[1643786307273,1.95143953,2753.6,2752.9,0.1814]
[1643786307473,1.4321626,2753.7,2752.9,0.1814]
[1643786307677,3.49693646,2753.6,2752.8,2.36000351]
[1643786307875,1.9620155,2753.6,2752.8,2.36000351]
[1643786308074,2.4321626,2753.7,2752.8,2.36000351]
[1643786308075,1.4321626,2753.7,2752.8,2.36000351]
[1643786308277,2.4321626,2753.7,2752.8,2.36000351]
[1643786309277,0.1816,2753.6,2752.8,2.36000351]
[1643786310520,2.6137626,2753.7,2752.8,2.36000351]
[1643786310923,2.0897626,2753.7,2752.8,2.36000351]
[1643786311135,0.3,2753.9,2752.8,2.36000351]
[1643786311136,0.4816,2753.9,2752.8,2.36000351]
[1643786311327,0.3,2753.9,2752.9,0.09999088]
[1643786311521,0.47997187,2754.0,2753.0,0.42176424]
[1643786311921,1.53511205,2753.9,2753.0,0.52175512]
[1643786312121,1.53511205,2753.9,2753.0,0.09999088]
[1643786312322,1.83511205,2753.9,2752.9,1.2024]
[1643786312522,0.3,2753.9,2752.9,1.2024]
[1643786312722,0.47997187,2754.0,2752.9,1.2024]
[1643786312922,1.53510515,2753.9,2752.9,1.2024]
[1643786313123,1.83510515,2753.9,2752.9,1.2024]
[1643786313324,0.3,2753.9,2752.9,1.2024]
[1643786313723,0.47997187,2754.0,2752.9,1.2024]
[1643786313972,1.5350893,2753.9,2753.0,0.52108331]
[1643786314170,1.5350893,2753.9,2753.3,0.88011675]
[1643786314370,0.3,2753.9,2753.3,0.88011675]
[1643786314767,0.47997187,2754.0,2753.3,0.88011675]
[1643786315173,0.17997187,2754.0,2753.3,0.88011675]
[1643786315573,0.47997187,2754.0,2753.3,0.88011675]
[1643786315777,0.4814,2754.2,2753.4,0.3]
[1643786315976,1.53502957,2754.1,2753.4,0.3]
[1643786316175,0.1814,2754.3,2753.4,0.3]
[1643786316378,1.53500801,2754.2,2753.4,0.3]
[1643786316579,1.53500801,2754.3,2753.4,0.3]
[1643786318311,1.53500801,2754.3,2753.3,0.88011675]
[1643786318721,1.53500801,2754.3,2753.8,0.75947464]
[1643786319222,0.3,2754.2,2753.2,0.1814]
[1643786319415,0.3,2754.2,2753.1,0.1814]
[1643786320015,0.3,2754.3,2753.1,0.1814]
[1643786320215,1.53499215,2754.2,2753.5,0.70560712]
[1643786320418,1.96137187,2754.4,2753.5,0.70560712]
[1643786320617,0.3,2754.2,2753.5,0.70560712]
[1643786320817,1.0,2754.2,2753.5,0.70560712]
[1643786321020,3.89536276,2754.4,2753.5,0.70560712]
[1643786321219,2.53499231,2754.3,2753.5,0.70560712]
[1643786321472,1.53499231,2754.2,2753.5,0.70454774]
[1643786321665,1.83499231,2754.2,2753.5,0.70454774]
[1643786321874,0.3,2754.2,2753.1,0.1814]
[1643786322066,1.5350499,2754.1,2753.9,0.40046118]
[1643786322273,0.37390877,2754.4,2753.4,0.524]
[1643786322274,0.1814,2754.4,2753.4,0.524]
[1643786322470,0.1814,2754.8,2753.5,0.7054]
[1643786322671,1.5348818,2754.7,2753.5,0.7054]
[1643786323074,1.5348818,2754.7,2753.5,0.88689]
[1643786323273,1.5348818,2754.7,2753.5,2.48689]
[1643786323467,1.8348818,2754.7,2753.5,1.18689]
[1643786323670,1.5348818,2754.6,2753.7,0.90766]
[1643786323871,1.5348818,2754.6,2753.7,1.43166]
[1643786324070,1.5348818,2754.6,2753.7,0.524]
[1643786324477,1.5348818,2754.6,2753.7,1.37339884]
[1643786324669,1.5348818,2754.6,2753.7,1.67339884]
[1643786325323,2.5348818,2754.6,2753.7,1.67339884]
[1643786325524,1.5348818,2754.5,2753.7,1.67339884]
[1643786325822,0.3,2754.5,2753.7,1.37339884]
[1643786326224,0.4814,2754.6,2753.7,1.37339884]
[1643786326424,1.53486154,2754.5,2753.7,1.37339884]
[1643786326827,1.1814,2754.7,2753.7,1.67339884]
[1643786327032,1.53485257,2754.6,2753.7,1.67339884]
[1643786327230,1.83485257,2754.6,2753.7,3.7535453]
[1643786327429,1.53485257,2754.5,2753.7,1.67339884]
[1643786328631,1.53485257,2754.5,2753.7,2.57999055]
[1643786334826,1.53485257,2754.5,2753.7,2.28107884]
[1643786335320,1.53485257,2754.5,2753.7,3.18874884]
[1643786335727,1.53485257,2754.5,2753.8,0.3]
[1643786342020,1.53485257,2754.4,2753.9,0.90769]
[1643786342320,1.26909757,2754.8,2753.9,0.90769]
[1643786342321,0.1814,2754.8,2753.9,0.90769]
[1643786342524,1.53477046,2754.7,2753.9,0.90769]
[1643786342719,1.83477046,2754.7,2753.9,0.90769]
[1643786342919,1.53477046,2754.6,2753.9,0.90769]
[1643786343985,1.53477046,2754.6,2753.8,1.2084]
[1643786344586,2.53477046,2754.6,2753.8,1.2084]
[1643786344784,1.53477046,2754.5,2753.8,1.5084]
[1643786344983,1.53477046,2754.4,2753.8,1.5084]
[1643786345189,1.3,2754.7,2753.8,1.5084]
[1643786345381,1.53478067,2754.6,2753.8,1.5084]
[1643786345581,0.66137187,2754.8,2753.8,1.5084]
[1643786345582,1.53478067,2754.5,2753.8,1.5084]
[1643786345782,2.91326137,2754.7,2753.8,1.5084]
[1643786345783,1.53478067,2754.4,2753.8,1.5084]
[1643786345982,1.0,2754.6,2753.8,1.5084]
[1643786346184,1.53480546,2754.5,2753.8,1.5084]
[1643786348911,1.53480546,2754.5,2753.8,1.2084]
[1643786349721,1.53480546,2754.5,2753.8,1.5084]
[1643786351766,1.53480546,2754.5,2753.8,1.2084]
[1643786352771,1.53480546,2754.5,2753.8,1.5084]
[1643786353176,1.53369295,2754.5,2753.8,1.5084]
[1643786354776,1.53369295,2754.5,2753.8,1.2084]
[1643786356417,1.53369295,2754.5,2753.9,0.90772]
[1643786356617,1.0,2754.7,2753.9,0.90772]
[1643786356818,2.56907337,2754.8,2753.9,0.90772]
[1643786357622,2.56907337,2754.8,2754.2,0.78938351]
[1643786357822,4.56907337,2754.8,2754.2,0.78938351]
[1643786358023,4.56907337,2754.8,2753.9,0.90772]
[1643786358879,1.58363044,2754.5,2753.7,0.1814]
[1643786359081,2.85720834,2754.4,2753.7,0.1814]
[1643786359283,0.1814,2754.4,2753.7,0.1814]
[1643786359479,1.0,2754.3,2753.7,0.1814]
[1643786359680,0.1814,2754.2,2753.7,0.1814]
[1643786359880,0.1814,2754.2,2753.3,1.1521]
[1643786359881,0.17997187,2754.2,2753.3,1.1521]
[1643786360081,0.907948,2754.1,2753.3,1.48519535]
[1643786360281,0.3,2754.0,2753.3,1.48519535]
[1643786360685,0.3,2754.0,2753.3,1.1521]
[1643786360988,2.19550561,2754.0,2753.3,1.1521]
[1643786361286,1.3,2754.0,2753.3,1.1521]
[1643786361482,3.19591218,2754.0,2753.3,1.1521]
[1643786361682,3.1904473,2754.0,2753.3,1.1521]
[1643786361883,3.19699248,2754.0,2753.3,1.1521]
[1643786362082,3.21714069,2754.0,2753.3,1.1521]
[1643786362484,1.3,2754.0,2753.3,1.1521]
[1643786362718,0.3,2754.0,2753.3,1.1521]
[1643786364821,0.3,2754.0,2753.4,0.3]
[1643786366477,0.1814,2754.3,2753.4,0.3]
[1643786366478,1.089268,2754.3,2753.4,0.3]
[1643786366777,2.207868,2754.3,2753.3,2.24136]
[1643786367179,1.207868,2754.3,2753.3,2.24136]
[1643786368684,2.207868,2754.3,2753.3,2.24136]
[1643786369086,2.207868,2754.3,2753.7,0.94922535]
[1643786369285,1.207868,2754.3,2753.7,0.94922535]
[1643786370820,1.207868,2754.3,2753.3,2.24136]
[1643786371824,1.1988683,2754.3,2753.6,0.71895031]
[1643786373026,1.0,2754.4,2753.6,0.71895031]
[1643786373231,1.0892093,2754.5,2753.6,0.71895031]
[1643786373232,1.53473065,2754.3,2753.6,0.71895031]
[1643786373429,1.0,2754.6,2753.6,0.71895031]
[1643786373430,1.53473065,2754.2,2753.6,0.71895031]
[1643786373630,1.53473065,2754.1,2753.6,0.71895031]
[1643786373887,1.36137187,2754.7,2753.6,0.71895031]
[1643786373888,1.3,2754.6,2753.6,0.71895031]
[1643786374195,1.53471843,2754.5,2753.7,1.2152]
[1643786374588,2.53471843,2754.5,2753.7,1.2152]
[1643786374889,1.53471843,2754.4,2753.7,1.2152]
[1643786375289,2.53471843,2754.5,2753.7,1.2152]
[1643786375487,1.53471843,2754.4,2754.0,0.35783592]
[1643786375688,1.53471843,2754.3,2754.0,0.35783592]
[1643786375887,1.53471843,2754.2,2754.0,0.35783592]
[1643786376090,1.0,2754.5,2753.7,1.2152]
[1643786376091,1.53471843,2754.1,2753.7,1.2152]
[1643786376290,1.9078057,2754.5,2753.7,1.2152]
[1643786376291,1.53471843,2754.0,2753.7,1.2152]
[1643786376492,1.95846394,2754.4,2753.6,0.71895031]
[1643786376697,2.53479676,2754.3,2753.6,0.71895031]
[1643786376892,1.53479676,2754.2,2753.6,0.71895031]